fUST/lending_fUST_20250901
["ID","MTS","AMOUNT","RATE_DAILY","PERIOD"]
[382519086,1756656001565,215.44,0.00017246,3]
[382519087,1756656002952,300.0,0.0001725,2]
[382519088,1756656004427,157.13582543,0.00017155,2]
[382519089,1756656006162,157.13582543,0.00017248,2]
[382519090,1756656007018,1521.6,0.0001725,2]
[382519091,1756656012358,646.34,0.00017246,3]
[382519092,1756656013912,573.31,0.0001725,2]
[382519093,1756656016411,480.0,0.00017251,2]
[382519094,1756656017499,977.84,0.00017251,2]
[382519095,1756656018365,769.92,0.00017251,2]
[382519096,1756656021596,949.19,0.00017251,2]
[382519097,1756656022859,1038.38,0.0001725,2]
[382519098,1756656030249,529.23,0.00017251,2]
[382519099,1756656032688,480.0,0.0001725,2]
[382519100,1756656034235,1264.35,0.00017251,2]
[382519101,1756656036580,918.81,0.00017251,2]
[382519102,1756656039967,3835.48,0.00017251,2]
[382519103,1756656043545,740.85,0.0001725,2]
[382519104,1756656044387,480.0,0.00017251,2]
[382519105,1756656045818,480.0,0.00017251,2]
[382519106,1756656050947,480.0,0.00017251,2]
[382519107,1756656054852,1027.37,0.00017251,2]
[382519108,1756656054905,818.84,0.0001725,2]
[382519109,1756656057027,898.26,0.00017251,2]
[382519110,1756656060179,383.5558664,0.00017152,2]
[382519111,1756656064054,300.0,0.0001725,2]
[382519112,1756656068702,480.0,0.0001725,2]
[382519113,1756656073012,703.25,0.00017251,2]
[382519114,1756656073277,480.0,0.0001725,2]
[382519115,1756656075795,480.0,0.00017251,2]
[382519116,1756656076300,1212.069237,0.00013699,2]
[382519118,1756656076988,480.0,0.00017251,2]
[382519119,1756656078938,522.21,0.00017251,2]
[382519120,1756656086860,480.0,0.00017251,2]
[382519121,1756656087289,480.0,0.00017251,2]
[382519122,1756656087725,480.0,0.0001725,2]
[382519123,1756656088757,875.77,0.0001725,2]
[382519124,1756656092132,155.0,0.00027397,120]
[382519125,1756656094557,480.0,0.00017251,2]
[382519126,1756656096458,480.0,0.00017251,2]
[382519127,1756656097995,1252.22,0.0001725,2]
[382519128,1756656099974,2146.51,0.00017251,2]
[382519129,1756656101247,480.0,0.00017251,2]
[382519130,1756656104354,10000.0,0.00016254,2]
[382519131,1756656107733,480.0,0.0001725,2]
[382519132,1756656107997,480.0,0.00017251,2]
[382519133,1756656110047,480.0,0.00017251,2]
[382519134,1756656111399,792.53,0.00017251,2]
[382519135,1756656112143,722.69,0.00017251,2]
[382519136,1756656112552,649.72,0.0001725,2]
[382519137,1756656112830,905.84,0.00017251,2]
[382519138,1756656113823,480.0,0.0001725,2]
[382519139,1756656117840,480.0,0.00017251,2]
[382519140,1756656121828,1798.37,0.00017251,2]
[382519141,1756656121952,480.0,0.00017251,2]
[382519142,1756656122197,1758.55,0.0001725,2]
[382519143,1756656123129,500.0,0.00017251,2]
[382519144,1756656126632,480.0,0.00017251,2]
[382519145,1756656131135,1042.93,0.0001725,2]
[382519146,1756656131174,480.0,0.0001725,2]
[382519147,1756656131404,646.97,0.00017251,2]
[382519148,1756656135293,804.19,0.00017251,2]
[382519149,1756656139152,538.84552751,0.00017251,2]
[382519150,1756656139359,637.66,0.00017251,2]
[382519151,1756656143307,492.92,0.0001725,2]
[382519152,1756656144328,636.76,0.00017251,2]
[382519153,1756656144694,480.0,0.00017251,2]
[382519154,1756656146705,2062.15,0.00017251,2]
[382519155,1756656151764,480.0,0.00017251,2]
[382519156,1756656152719,570.79,0.0001725,2]
[382519157,1756656153108,3351.24,0.00017251,2]
[382519158,1756656153810,480.0,0.00017251,2]
[382519159,1756656154186,1174.06,0.00017251,2]
[382519160,1756656156500,480.0,0.0001725,2]
[382519161,1756656158331,1956.08,0.00017251,2]
[382519162,1756656160247,480.0,0.00017251,2]
[382519163,1756656161735,480.0,0.0001725,2]
[382519164,1756656164335,413.3736342,0.0001725,2]
[382519165,1756656166411,480.0,0.0001725,2]
[382519166,1756656166846,830.83,0.00017251,2]
[382519167,1756656167865,480.0,0.00017251,2]
[382519168,1756656170876,1297.02,0.0001725,2]
[382519169,1756656171527,533.07,0.0001725,2]
[382519170,1756656172282,753.72,0.00017251,2]
[382519171,1756656172679,480.0,0.00017251,2]
[382519172,1756656174181,1243.76,0.00024,30]
[382519173,1756656177489,480.0,0.00017251,2]
[382519174,1756656180409,500.0,0.00017251,2]
[382519175,1756656180668,500.0,0.00017251,2]
[382519176,1756656181023,3052.28,0.00017251,2]
[382519177,1756656181272,460.21,0.00017251,2]
[382519178,1756656181676,1206.98,0.00017251,2]
[382519179,1756656183010,300.0,0.0001725,2]
[382519180,1756656186655,618.88,0.00017251,2]
[382519181,1756656190739,639.5,0.00017251,2]
[382519182,1756656190877,480.0,0.0001725,2]
[382519183,1756656192839,481.5065541,0.0001725,2]
[382519184,1756656193536,480.0,0.00017251,2]
[382519185,1756656194632,210.98623034,0.00017251,2]
[382519186,1756656195769,480.0,0.00017251,2]
[382519187,1756656196560,480.0,0.00017251,2]
[382519188,1756656198030,480.0,0.00017251,2]
[382519189,1756656198591,481.72,0.00017251,2]
[382519190,1756656199931,2815.51,0.00017251,2]
[382519191,1756656203445,1663.11,0.0001725,2]
[382519192,1756656207699,931.72,0.00017251,2]
[382519193,1756656209242,480.0,0.00017251,2]
[382519194,1756656212333,480.0,0.00017251,2]
[382519195,1756656216020,480.0,0.00017251,2]
[382519196,1756656217183,1006.75,0.00017251,2]
[382519197,1756656218290,480.0,0.00017251,2]
[382519198,1756656219282,480.0,0.0001725,2]
[382519199,1756656220333,480.0,0.00017251,2]
[382519200,1756656225634,621.62,0.00017251,2]
[382519201,1756656226765,480.0,0.0001725,2]
[382519202,1756656227638,480.0,0.00017251,2]
[382519203,1756656229217,480.0,0.00017251,2]
[382519204,1756656229277,480.0,0.0001725,2]
[382519205,1756656231028,737.84,0.00017251,2]
[382519206,1756656231431,1465.29,0.0001725,2]
[382519207,1756656232022,1277.51,0.0001725,2]
[382519208,1756656235634,777.82,0.00017251,2]
[382519209,1756656236715,480.0,0.00017251,2]
[382519210,1756656240734,480.0,0.0001725,2]
[382519211,1756656241962,480.0,0.0001725,2]
[382519212,1756656243205,981.11,0.00017251,2]
[382519213,1756656243267,300.0,0.0001725,2]
[382519214,1756656244001,1309.07,0.00017251,2]
[382519215,1756656248875,1177.52,0.00017251,2]
[382519216,1756656250544,880.53,0.00017251,2]
[382519217,1756656251000,1618.23,0.00017251,2]
[382519218,1756656255104,1393.52,0.00017251,2]
[382519219,1756656256952,335.6113831,0.00017152,2]
[382519220,1756656259623,1427.85,0.00017251,2]
[382519221,1756656259665,480.0,0.00017251,2]
[382519222,1756656263009,480.0,0.00017251,2]
[382519223,1756656263741,480.0,0.0001725,2]
[382519224,1756656264195,1064.57,0.00017251,2]
[382519225,1756656265516,614.17,0.00017251,2]
[382519226,1756656271391,860.83,0.00017251,2]
[382519227,1756656275449,1321.03,0.00017251,2]
[382519228,1756656275645,480.0,0.00017251,2]
[382519229,1756656280125,480.0,0.0001725,2]
[382519230,1756656289706,1744.99,0.00017251,2]
[382519231,1756656289927,795.34,0.00017251,2]
[382519232,1756656291343,673.95,0.00017251,2]
[382519233,1756656293190,480.0,0.00017251,2]
[382519234,1756656296825,480.0,0.00017251,2]
[382519235,1756656296875,642.41,0.00017251,2]
[382519236,1756656298144,909.64,0.00017251,2]
[382519237,1756656298362,522.96,0.0001725,2]
[382519238,1756656302024,490.60202883,0.00017251,2]
[382519239,1756656302608,300.0,0.0001725,2]
[382519240,1756656309787,673.77,0.00017251,2]
[382519241,1756656310189,749.9,0.0001725,2]
[382519242,1756656314246,480.0,0.00017251,2]
[382519243,1756656318464,743.97,0.0001725,2]
[382519244,1756656319319,480.0,0.00017251,2]
[382519245,1756656320706,3675.66,0.00017251,2]
[382519246,1756656329084,759.51,0.00017251,2]
[382519247,1756656330155,480.0,0.00017251,2]
[382519248,1756656331678,480.0,0.00017251,2]
[382519249,1756656333182,480.0,0.0001725,2]
[382519250,1756656333239,480.0,0.00017251,2]
[382519251,1756656338196,480.0,0.00017251,2]
[382519252,1756656339961,488.61,0.00017251,2]
[382519253,1756656341495,829.97,0.00017251,2]
[382519254,1756656341788,157.13582543,0.00017152,2]
[382519255,1756656341822,480.0,0.00017251,2]
[382519256,1756656342258,480.0,0.00017251,2]
[382519257,1756656343677,984.57,0.00017251,2]
[382519258,1756656344046,571.85,0.00017251,2]
[382519259,1756656346886,635.28,0.00017251,2]
[382519260,1756656347906,480.0,0.0001725,2]
[382519261,1756656348001,1723.44,0.00017251,2]
[382519262,1756656350885,480.0,0.00017251,2]
[382519263,1756656351608,673.26,0.0001725,2]
[382519264,1756656353119,480.0,0.00017251,2]
[382519265,1756656357856,607.68,0.00017251,2]
[382519266,1756656364511,480.0,0.00017251,2]
[382519267,1756656367390,1976.23,0.00017251,2]
[382519268,1756656378647,602.51,0.0001725,2]
[382519269,1756656382770,1348.7,0.00017251,2]
[382519270,1756656387071,480.0,0.00017251,2]
[382519271,1756656391371,608.25,0.00017251,2]
[382519272,1756656391480,3211.61,0.00017251,2]
[382519273,1756656395030,1465.47,0.00017251,2]
[382519274,1756656398866,770.68,0.00017251,2]
[382519275,1756656400946,1230.82,0.0001725,2]
[382519276,1756656403616,789.67,0.00017251,2]
[382519277,1756656406081,715.5,0.00017251,2]
[382519278,1756656409789,480.0,0.00017251,2]
[382519279,1756656410699,1316.47,0.0001725,2]
[382519280,1756656412306,960.96,0.00017251,2]
[382519281,1756656417989,480.0,0.00017251,2]
[382519282,1756656419814,2925.11,0.00017251,2]
[382519283,1756656423206,300.0,0.0001725,2]
[382519284,1756656425970,278.00664309,0.00017251,2]
[382519285,1756656426633,480.0,0.00017251,2]
[382519286,1756656431141,1692.7,0.00017251,2]
[382519287,1756656431661,886.42,0.00017251,2]
[382519288,1756656432798,480.0,0.00017251,2]
[382519289,1756656434475,480.0,0.00017251,2]
[382519290,1756656436864,480.0,0.00017251,2]
[382519291,1756656439437,1343.09,0.0001725,2]
[382519292,1756656439598,749.37,0.00017251,2]
[382519293,1756656442450,480.0,0.0001725,2]
[382519294,1756656445558,666.0,0.00016255,2]
[382519295,1756656446432,575.65145078,0.00017251,2]
[382519296,1756656448194,480.0,0.00017251,2]
[382519297,1756656448692,480.0,0.0001725,2]
[382519298,1756656449060,480.0,0.00017251,2]
[382519299,1756656449711,1125.14,0.00017251,2]
[382519300,1756656453902,1189.63,0.0001725,2]
[382519301,1756656456149,293.65996023,0.00017152,2]
[382519302,1756656458391,480.0,0.00017251,2]
[382519303,1756656458800,480.0,0.00017251,2]
[382519304,1756656461425,480.0,0.00017251,2]
[382519305,1756656461506,912.94,0.00017251,2]
[382519306,1756656462051,2831.73,0.00017251,2]
[382519307,1756656462473,1504.0,0.00017251,2]
[382519308,1756656464827,663.94,0.00017251,2]
[382519309,1756656465569,354.50115344,0.00017251,2]
[382519310,1756656469928,712.3,0.00017251,2]
[382519311,1756656471358,480.0,0.00017251,2]
[382519312,1756656471399,658.35,0.00017251,2]
[382519313,1756656471509,480.0,0.00017251,2]
[382519314,1756656471542,1072.62,0.00017251,2]
[382519315,1756656471719,480.0,0.0001725,2]
[382519316,1756656476537,1183.83,0.00017251,2]
[382519317,1756656478487,780.77,0.00017251,2]
[382519318,1756656479464,1479.93,0.0001725,2]
[382519319,1756656479683,1450.02,0.00017251,2]
[382519320,1756656479813,641.93,0.00017251,2]
[382519321,1756656485889,617.71,0.00017251,2]
[382519322,1756656489352,480.0,0.00017251,2]
[382519323,1756656489933,1308.26,0.0001725,2]
[382519324,1756656493116,300.0,0.0001725,2]
[382519325,1756656494772,480.0,0.00017251,2]
[382519326,1756656495445,480.0,0.00017251,2]
[382519327,1756656497191,935.24,0.00017251,2]
[382519328,1756656497564,1433.26,0.00017251,2]
[382519329,1756656498597,480.0,0.0001725,2]
[382519330,1756656504107,1139.7,0.00017251,2]
[382519331,1756656508878,1210.08,0.00017251,2]
[382519332,1756656509437,1022.44,0.00017251,2]
[382519333,1756656510257,1655.85,0.0001725,2]
[382519334,1756656511664,480.0,0.00017251,2]
[382519335,1756656512109,5840.01,0.00017251,2]
[382519336,1756656515801,679.16,0.00017251,2]
[382519337,1756656515848,913.23,0.00017251,2]
[382519338,1756656516148,353.68286026,0.00017251,2]
[382519339,1756656520608,480.0,0.00017251,2]
[382519340,1756656521414,742.1,0.00017251,2]
[382519341,1756656527211,3690.17,0.00017251,2]
[382519342,1756656528050,1017.17,0.00017251,2]
[382519343,1756656531359,480.0,0.00017251,2]
[382519344,1756656532775,1372.03,0.00017251,2]
[382519345,1756656534640,1624.36,0.00017251,2]
[382519346,1756656537477,1487.04,0.00017251,2]
[382519347,1756656541003,885.6,0.00017251,2]
[382519348,1756656541336,552.92,0.00017251,2]
[382519349,1756656541893,963.54,0.00017251,2]
[382519350,1756656543668,480.0,0.00017251,2]
[382519351,1756656544098,300.0,0.0001725,2]
[382519352,1756656545351,1269.16,0.00017251,2]
[382519353,1756656546494,527.36,0.00017251,2]
[382519354,1756656549064,576.43,0.0001725,2]
[382519355,1756656551491,765.45,0.00017251,2]
[382519356,1756656572640,480.0,0.00017251,2]
[382519357,1756656605115,1435.76,0.00017251,2]
[382519358,1756656611505,480.0,0.00017251,2]
[382519359,1756656614196,298.80298951,0.00017251,2]
[382519360,1756656614741,1326.03,0.00017251,2]
[382519361,1756656616211,480.0,0.00017251,2]
[382519363,1756656621178,480.0,0.00017251,2]
[382519364,1756656621405,480.0,0.00017251,2]
[382519365,1756656622521,684.16,0.00017251,2]
[382519366,1756656624208,300.0,0.0001725,2]
[382519367,1756656624442,480.0,0.00017251,2]
[382519368,1756656627104,215.44,0.0001725,3]
[382519369,1756656627177,1751.6,0.00017251,2]
[382519370,1756656630683,480.0,0.00017251,2]
[382519401,1756656638068,-288.55301218,0.00017251,2]
[382519402,1756656638078,-500.0,0.00017251,2]
[382519403,1756656638087,-441.4668899,0.00017251,2]
[382519404,1756656638362,-58.5331101,0.00017251,2]
[382519405,1756656638371,-500.0,0.00017251,2]
[382519406,1756656638381,-565.62833812,0.00017251,2]
[382519407,1756656638391,-500.0,0.00017251,2]
[382519408,1756656638402,-278.48429117,0.00017251,2]
[382519409,1756656638412,-500.0,0.00017251,2]
[382519410,1756656638422,-500.0,0.00017251,2]
[382519411,1756656638432,-500.0,0.00017251,2]
[382519412,1756656638443,-220.76663269,0.00017251,2]
[382519413,1756656638452,-500.0,0.00017251,2]
[382519415,1756656638461,-500.0,0.00017251,2]
[382519417,1756656638471,-500.0,0.00017251,2]
[382519419,1756656638480,-500.0,0.00017251,2]
[382519420,1756656638490,-500.0,0.00017251,2]
[382519421,1756656638499,-500.0,0.00017251,2]
[382519422,1756656638509,-150.75878594,0.00017251,2]
[382519423,1756656638518,-160.0,0.00017252,2]
[382519424,1756656638528,-480.0,0.00017252,2]
[382519425,1756656638538,-480.0,0.00017252,2]
[382519426,1756656638548,-481.92102351,0.00017252,2]
[382519427,1756656638559,-480.0,0.00017252,2]
[382519428,1756656638568,-480.0,0.00017252,2]
[382519429,1756656638577,-480.0,0.00017252,2]
[382519430,1756656638588,-480.0,0.00017252,2]
[382519431,1756656638597,-480.0,0.00017252,2]
[382519432,1756656638606,-247.99788616,0.00017252,2]
[382519433,1756656638616,-480.0,0.00017252,2]
[382519434,1756656638625,-480.0,0.00017252,2]
[382519435,1756656638634,-543.86,0.00017252,2]
[382519436,1756656638643,-480.0,0.00017252,2]
[382519437,1756656638652,-480.0,0.00017252,2]
[382519438,1756656638661,-480.0,0.00017252,2]
[382519439,1756656638671,-480.0,0.00017252,2]
[382519440,1756656638680,-480.0,0.00017252,2]
[382519441,1756656638689,-593.38,0.00017252,2]
[382519442,1756656638699,-480.0,0.00017252,2]
[382519443,1756656638710,-480.0,0.00017252,2]
[382519444,1756656638719,-596.17,0.00017252,2]
[382519445,1756656638729,-480.0,0.00017252,2]
[382519446,1756656638738,-480.0,0.00017252,2]
[382519447,1756656638747,-480.0,0.00017252,2]
[382519448,1756656638758,-489.34,0.00017252,2]
[382519449,1756656638768,-480.0,0.00017252,2]
[382519450,1756656638777,-485.31157402,0.00017252,2]
[382519451,1756656638786,-602.4,0.00017252,2]
[382519452,1756656638796,-480.0,0.00017252,2]
[382519453,1756656638806,-480.0,0.00017252,2]
[382519454,1756656638815,-480.0,0.00017252,2]
[382519456,1756656638824,-484.91050785,0.00017252,2]
[382519457,1756656638834,-999.46,0.00017252,2]
[382519459,1756656638844,-480.0,0.00017252,2]
[382519461,1756656638854,-1454.61,0.00017252,2]
[382519463,1756656638864,-480.0,0.00017252,2]
[382519465,1756656638873,-480.0,0.00017252,2]
[382519467,1756656638883,-1464.44,0.00017252,2]
[382519469,1756656638893,-480.0,0.00017252,2]
[382519471,1756656638903,-480.0,0.00017252,2]
[382519472,1756656638912,-480.0,0.00017252,2]
[382519473,1756656638922,-700.54,0.00017252,2]
[382519474,1756656638932,-480.0,0.00017252,2]
[382519475,1756656638941,-480.0,0.00017252,2]
[382519477,1756656638951,-480.0,0.00017252,2]
[382519479,1756656638961,-480.0,0.00017252,2]
[382519481,1756656638971,-558.4,0.00017252,2]
[382519483,1756656638981,-1211.99,0.00017252,2]
[382519485,1756656638990,-480.0,0.00017252,2]
[382519486,1756656639000,-480.0,0.00017252,2]
[382519487,1756656639010,-480.0,0.00017252,2]
[382519488,1756656639020,-480.0,0.00017252,2]
[382519489,1756656639030,-480.0,0.00017252,2]
[382519491,1756656639040,-480.0,0.00017252,2]
[382519493,1756656639050,-619.85714217,0.00017252,2]
[382519495,1756656639059,-480.0,0.00017252,2]
[382519497,1756656639069,-480.0,0.00017252,2]
[382519499,1756656639078,-480.0,0.00017252,2]
[382519501,1756656639088,-480.0,0.00017252,2]
[382519503,1756656639098,-572.4,0.00017252,2]
[382519505,1756656639108,-651.72,0.00017252,2]
[382519507,1756656639118,-480.0,0.00017252,2]
[382519509,1756656639127,-480.0,0.00017252,2]
[382519511,1756656639137,-480.0,0.00017252,2]
[382519513,1756656639147,-411.61085373,0.00017252,2]
[382519515,1756656639157,-1546.97,0.00017252,2]
[382519517,1756656639167,-480.0,0.00017252,2]
[382519519,1756656639176,-480.0,0.00017252,2]
[382519521,1756656639186,-883.46,0.00017252,2]
[382519522,1756656639197,-480.0,0.00017252,2]
[382519524,1756656639207,-480.0,0.00017252,2]
[382519526,1756656639216,-480.0,0.00017252,2]
[382519527,1756656639226,-480.0,0.00017252,2]
[382519528,1756656639237,-480.0,0.00017252,2]
[382519529,1756656639247,-901.81,0.00017252,2]
[382519530,1756656639256,-480.0,0.00017252,2]
[382519531,1756656639266,-749.69,0.00017252,2]
[382519533,1756656639276,-480.0,0.00017252,2]
[382519535,1756656639286,-480.0,0.00017252,2]
[382519537,1756656639295,-186.55579662,0.00017252,2]
[382519539,1756656639305,-785.25,0.00017252,2]
[382519541,1756656639315,-1000.0,0.00017252,2]
[382519543,1756656639325,-480.0,0.00017252,2]
[382519545,1756656639335,-480.0,0.00017252,2]
[382519546,1756656639346,-480.0,0.00017252,2]
[382519547,1756656639357,-480.0,0.00017252,2]
[382519548,1756656639368,-480.0,0.00017252,2]
[382519549,1756656639379,-480.0,0.00017252,2]
[382519550,1756656639391,-279.29495814,0.00017252,2]
[382519551,1756656639403,-480.0,0.00017252,2]
[382519552,1756656639414,-500.0,0.00017252,2]
[382519553,1756656639426,-662.91,0.00017252,2]
[382519554,1756656639438,-480.0,0.00017252,2]
[382519555,1756656639448,-480.0,0.00017252,2]
[382519556,1756656639458,-480.0,0.00017252,2]
[382519557,1756656639469,-480.0,0.00017252,2]
[382519558,1756656639479,-480.0,0.00017252,2]
[382519559,1756656639489,-663.52,0.00017252,2]
[382519560,1756656639499,-480.0,0.00017252,2]
[382519562,1756656639508,-597.67,0.00017252,2]
[382519563,1756656639518,-3381.72,0.00017252,2]
[382519564,1756656639528,-480.0,0.00017252,2]
[382519565,1756656639540,-480.0,0.00017252,2]
[382519567,1756656639550,-480.0,0.00017252,2]
[382519569,1756656639560,-480.0,0.00017252,2]
[382519571,1756656639570,-880.14,0.00017252,2]
[382519573,1756656639580,-480.0,0.00017252,2]
[382519575,1756656639591,-480.0,0.00017252,2]
[382519577,1756656639602,-1081.12,0.00017252,2]
[382519579,1756656639615,-1000.01,0.00017252,2]
[382519581,1756656639625,-297.60048262,0.00017252,2]
[382519583,1756656639635,-480.0,0.00017252,2]
[382519585,1756656639645,-480.0,0.00017252,2]
[382519590,1756656639655,-480.0,0.00017252,2]
[382519592,1756656639664,-605.9,0.00017252,2]
[382519594,1756656639675,-668.71,0.00017252,2]
[382519596,1756656639684,-671.68,0.00017252,2]
[382519598,1756656639695,-1669.02,0.00017252,2]
[382519600,1756656639704,-480.0,0.00017252,2]
[382519602,1756656639714,-480.0,0.00017252,2]
[382519604,1756656639725,-867.11,0.00017252,2]
[382519606,1756656639735,-480.0,0.00017252,2]
[382519608,1756656639745,-1408.09,0.00017252,2]
[382519610,1756656639755,-480.0,0.00017252,2]
[382519612,1756656639765,-480.0,0.00017252,2]
[382519614,1756656639775,-1372.53,0.00017252,2]
[382519616,1756656639784,-480.0,0.00017252,2]
[382519618,1756656639794,-480.0,0.00017252,2]
[382519620,1756656639804,-480.0,0.00017252,2]
[382519622,1756656639813,-480.0,0.00017252,2]
[382519624,1756656639823,-672.42,0.00017252,2]
[382519626,1756656639833,-480.0,0.00017252,2]
[382519628,1756656639843,-480.0,0.00017252,2]
[382519630,1756656639853,-480.0,0.00017252,2]
[382519632,1756656639863,-480.0,0.00017252,2]
[382519634,1756656639873,-499.94,0.00017252,2]
[382519636,1756656639884,-712.47,0.00017252,2]
[382519638,1756656639894,-1377.62,0.00017252,2]
[382519640,1756656639903,-480.0,0.00017252,2]
[382519642,1756656639912,-480.0,0.00017252,2]
[382519644,1756656639922,-480.0,0.00017252,2]
[382519646,1756656639932,-645.34,0.00017252,2]
[382519648,1756656639942,-480.0,0.00017252,2]
[382519650,1756656639952,-506.51,0.00017252,2]
[382519652,1756656639962,-480.0,0.00017252,2]
[382519654,1756656639971,-480.0,0.00017252,2]
[382519656,1756656639981,-480.0,0.00017252,2]
[382519658,1756656639990,-500.0,0.00017252,2]
[382519660,1756656640000,-500.0,0.00017253,2]
[382519662,1756656640010,-500.0,0.00017253,2]
[382519664,1756656640020,-500.0,0.00017254,2]
[382519666,1756656640031,-480.0,0.00017255,2]
[382519668,1756656640041,-567.01,0.00017255,2]
[382519670,1756656640051,-584.88,0.00017255,2]
[382519672,1756656640061,-524.74,0.00017255,2]
[382519674,1756656640071,-1534.4,0.00017255,2]
[382519676,1756656640081,-751.15,0.00017255,2]
[382519678,1756656640091,-293.4238685,0.00017255,2]
[382519680,1756656640100,-480.0,0.00017255,2]
[382519682,1756656640110,-480.0,0.00017255,2]
[382519684,1756656640120,-480.0,0.00017255,2]
[382519686,1756656640129,-480.0,0.00017256,2]
[382519688,1756656640138,-480.0,0.00017256,2]
[382519689,1756656640148,-400.0,0.00017256,2]
[382519691,1756656640158,-480.0,0.00017256,2]
[382519693,1756656640167,-480.0,0.00017256,2]
[382519695,1756656640177,-480.0,0.00017256,2]
[382519697,1756656640187,-480.0,0.00017256,2]
[382519699,1756656640198,-2254.23,0.00017256,2]
[382519701,1756656640208,-1415.01,0.00017256,2]
[382519703,1756656640218,-790.66,0.00017256,2]
[382519705,1756656640228,-1575.32,0.00017256,2]
[382519707,1756656640237,-900.07,0.00017256,2]
[382519709,1756656640248,-549.68,0.00017256,2]
[382519711,1756656640257,-549.68,0.00017256,2]
[382519713,1756656640267,-480.0,0.00017256,2]
[382519715,1756656640277,-500.0,0.00017256,2]
[382519717,1756656640287,-500.0,0.00017256,2]
[382519719,1756656640296,-1043.97,0.00017256,2]
[382519721,1756656640306,-1492.94,0.00017256,2]
[382519723,1756656640316,-730.08,0.00017256,2]
[382519725,1756656640326,-480.0,0.00017256,2]
[382519727,1756656640335,-948.71,0.00017256,2]
[382519729,1756656640345,-851.74,0.00017256,2]
[382519731,1756656640355,-480.0,0.00017256,2]
[382519733,1756656640364,-1119.85,0.00017256,2]
[382519735,1756656640374,-741.8,0.00017256,2]
[382519737,1756656640385,-480.0,0.00017256,2]
[382519739,1756656640395,-480.0,0.00017256,2]
[382519741,1756656640404,-549.68,0.00017257,2]
[382519743,1756656640414,-549.68,0.00017259,2]
[382519745,1756656640424,-549.68,0.00017259,2]
[382519747,1756656640433,-549.68,0.00017259,2]
[382519750,1756656640445,-549.68,0.00017259,2]
[382519751,1756656640455,-549.68,0.00017259,2]
[382519753,1756656640464,-500.0,0.00017259,2]
[382519755,1756656640474,-500.0,0.00017259,2]